[Event "Titled Tuesday Blitz July 18 Early 2023"]
[White "Philippe, Guillaume"]
[Black "Tsaruk, Maksim"]
[WhiteFideId "36048763"]
[BlackFideId "13511173"]
[WhiteElo "2512"]
[BlackElo "2745"]
[Result "1-0"]
[Round "5"]
[TimeControl "180+2"]
[Date "2023.07.18"]
[WhiteClock "0:00:03"]
[BlackClock "0:00:03"]
[Board "80"]

1. e4 {[%clk 0:03:00]}  e6 {[%clk 0:02:58]} 2. d4 {[%clk 0:03:00]}  d5 {[%clk 0:02:59]} 3. Nc3 {[%clk 0:03:01]}  Bb4 {[%clk 0:02:58]} 4. e5 {[%clk 0:03:01]}  Ne7 {[%clk 0:02:55]} 5. Qg4 {[%clk 0:03:02]}  c5 {[%clk 0:02:55]} 6. a3 {[%clk 0:03:02]}  Bxc3+ {[%clk 0:02:55]} 7. bxc3 {[%clk 0:03:03]}  Qa5 {[%clk 0:02:56]} 8. Bd2 {[%clk 0:02:59]}  Kf8 {[%clk 0:02:56]} 9. a4 {[%clk 0:02:54]}  c4 {[%clk 0:02:42]} 10. Nf3 {[%clk 0:02:53]}  Bd7 {[%clk 0:02:42]} 11. h4 {[%clk 0:02:42]}  Bxa4 {[%clk 0:02:42]} 12. h5 {[%clk 0:02:40]}  h6 {[%clk 0:02:42]} 13. Qf4 {[%clk 0:02:34]}  Qb5 {[%clk 0:02:41]} 14. Kd1 {[%clk 0:02:23]}  Qe8 {[%clk 0:01:28]} 15. Bc1 {[%clk 0:02:17]}  b5 {[%clk 0:01:28]} 16. Ba3 {[%clk 0:01:59]}  a5 {[%clk 0:01:28]} 17. Bd6 {[%clk 0:01:56]}  b4 {[%clk 0:01:28]} 18. Nh4 {[%clk 0:01:47]}  Kg8 {[%clk 0:01:03]} 19. Bxe7 {[%clk 0:01:41]}  Bxc2+ {[%clk 0:01:03]} 20. Kxc2 {[%clk 0:01:41]}  Qxe7 {[%clk 0:01:04]} 21. Be2 {[%clk 0:01:35]}  Nc6 {[%clk 0:01:04]} 22. Ra4 {[%clk 0:01:16]}  bxc3 {[%clk 0:00:55]} 23. Rb1 {[%clk 0:01:15]}  Kh7 {[%clk 0:00:52]} 24. Bxc4 {[%clk 0:00:57]}  Rhb8 {[%clk 0:00:47]} 25. Bd3+ {[%clk 0:00:51]}  Kh8 {[%clk 0:00:48]} 26. Kxc3 {[%clk 0:00:41]}  Rxb1 {[%clk 0:00:24]} 27. Bxb1 {[%clk 0:00:42]}  Rb8 {[%clk 0:00:25]} 28. Qc1 {[%clk 0:00:31]}  Qxh4 {[%clk 0:00:16]} 29. g3 {[%clk 0:00:29]}  Qxh5 {[%clk 0:00:13]} 30. Kd2 {[%clk 0:00:29]}  Qg5+ {[%clk 0:00:07]} 31. Kd1 {[%clk 0:00:17]}  Qg4+ {[%clk 0:00:05]} 32. Ke1 {[%clk 0:00:15]}  Nxd4 {[%clk 0:00:05]} 33. Kf1 {[%clk 0:00:11]}  Qe2+ {[%clk 0:00:03]} 34. Kg2 {[%clk 0:00:10]}  Qxe5 {[%clk 0:00:03]} 35. Bd3 {[%clk 0:00:08]}  Nf5 {[%clk 0:00:03]} 36. Rf4 {[%clk 0:00:07]}  Rf8 {[%clk 0:00:03]} 37. Qc5 {[%clk 0:00:06]}  Qd6 {[%clk 0:00:03]} 38. Qxa5 {[%clk 0:00:06]}  Ne7 {[%clk 0:00:04]} 39. Qd2 {[%clk 0:00:06]}  e5 {[%clk 0:00:04]} 40. Rh4 {[%clk 0:00:06]}  Qf6 {[%clk 0:00:04]} 41. Be2 {[%clk 0:00:05]}  d4 {[%clk 0:00:04]} 42. Bd3 {[%clk 0:00:05]}  Qg6 {[%clk 0:00:04]} 43. Bxg6 {[%clk 0:00:05]}  Nxg6 {[%clk 0:00:05]} 44. Re4 {[%clk 0:00:05]}  f5 {[%clk 0:00:05]} 45. Re2 {[%clk 0:00:05]}  f4 {[%clk 0:00:06]} 46. gxf4 {[%clk 0:00:04]}  Nxf4+ {[%clk 0:00:06]} 47. Kf1 {[%clk 0:00:05]}  Nxe2 {[%clk 0:00:06]} 48. Qxe2 {[%clk 0:00:06]}  Rf5 {[%clk 0:00:06]} 49. Qe4 {[%clk 0:00:06]}  g6 {[%clk 0:00:05]} 50. Ke2 {[%clk 0:00:06]}  Kg7 {[%clk 0:00:06]} 51. Qc6 {[%clk 0:00:06]}  h5 {[%clk 0:00:05]} 52. f3 {[%clk 0:00:05]}  Kh6 {[%clk 0:00:06]} 53. Kf2 {[%clk 0:00:05]}  Kg5 {[%clk 0:00:06]} 54. Kg3 {[%clk 0:00:05]}  h4+ {[%clk 0:00:07]} 55. Kg2 {[%clk 0:00:05]}  Rf4 {[%clk 0:00:03]} 56. Qd6 {[%clk 0:00:05]}  h3+ {[%clk 0:00:04]} 57. Kg3 {[%clk 0:00:02]}  Rf5 {[%clk 0:00:04]} 58. Qe7+ {[%clk 0:00:02]}  Kh6 {[%clk 0:00:04]} 59. Qd8 {[%clk 0:00:02]}  h2 {[%clk 0:00:03]} 60. Qh8+ {[%clk 0:00:02]}  Kg5 {[%clk 0:00:03]} 61. Qh4# {[%clk 0:00:03]} 1-0


[Site "https://www.chess.com"]

[Event "Titled Tuesday Blitz July 18 Early 2023"]
[White "Hilary46"]
[Black "LeoLV10"]
[WhiteElo "2697"]
[BlackElo "2508"]
[Result "0-1"]
[Round "5"]
[TimeControl "180+2"]
[Date "2023.07.18"]
[WhiteClock "0:01:52"]
[BlackClock "0:01:09"]
[Board "81"]

1. e4 {[%clk 0:03:00]}  c6 {[%clk 0:02:52]} 2. d4 {[%clk 0:03:00]}  d5 {[%clk 0:02:53]} 3. e5 {[%clk 0:03:00]}  c5 {[%clk 0:02:50]} 4. dxc5 {[%clk 0:03:00]}  e6 {[%clk 0:02:49]} 5. a3 {[%clk 0:03:01]}  Bxc5 {[%clk 0:02:49]} 6. b4 {[%clk 0:03:01]}  Bb6 {[%clk 0:02:49]} 7. Bb2 {[%clk 0:03:02]}  Ne7 {[%clk 0:02:49]} 8. Nf3 {[%clk 0:03:03]}  a5 {[%clk 0:02:47]} 9. b5 {[%clk 0:03:03]}  Nd7 {[%clk 0:02:46]} 10. c4 {[%clk 0:03:03]}  Nc5 {[%clk 0:02:42]} 11. Nc3 {[%clk 0:03:03]}  O-O {[%clk 0:02:39]} 12. cxd5 {[%clk 0:03:04]}  exd5 {[%clk 0:02:39]} 13. Be2 {[%clk 0:03:00]}  Be6 {[%clk 0:02:40]} 14. O-O {[%clk 0:03:00]}  Ng6 {[%clk 0:02:39]} 15. Na4 {[%clk 0:02:57]}  Nxa4 {[%clk 0:02:31]} 16. Qxa4 {[%clk 0:02:58]}  Rc8 {[%clk 0:02:27]} 17. Rac1 {[%clk 0:02:57]}  Qe7 {[%clk 0:02:26]} 18. h3 {[%clk 0:02:51]}  Qd7 {[%clk 0:02:22]} 19. Bd3 {[%clk 0:02:48]}  Bxh3 {[%clk 0:02:02]} 20. gxh3 {[%clk 0:02:48]}  Qxh3 {[%clk 0:02:03]} 21. Be2 {[%clk 0:02:48]}  Qg3+ {[%clk 0:01:46]} 22. Kh1 {[%clk 0:02:48]}  Bxf2 {[%clk 0:01:46]} 23. Rxc8 {[%clk 0:02:39]}  Rxc8 {[%clk 0:01:43]} 24. Nh2 {[%clk 0:02:38]}  Nf4 {[%clk 0:01:30]} 25. Bf3 {[%clk 0:02:37]}  Qh4 {[%clk 0:01:11]} 26. Bc1 {[%clk 0:02:30]}  Bg3 {[%clk 0:01:11]} 27. Bxf4 {[%clk 0:01:52]}  Qxh2# {[%clk 0:01:09]} 0-1


[Site "https://www.chess.com"]

[Event "Titled Tuesday Blitz July 18 Early 2023"]
[White "ElenGajger"]
[Black "Begmuratov, Alisher"]
[BlackFideId "14203367"]
[WhiteElo "2507"]
[BlackElo "2663"]
[Result "1/2-1/2"]
[Round "5"]
[TimeControl "180+2"]
[Date "2023.07.18"]
[WhiteClock "0:00:38"]
[BlackClock "0:00:20"]
[Board "82"]

1. e4 {[%clk 0:03:00]}  c6 {[%clk 0:02:59]} 2. d4 {[%clk 0:03:00]}  d5 {[%clk 0:03:00]} 3. Nd2 {[%clk 0:03:00]}  dxe4 {[%clk 0:02:59]} 4. Nxe4 {[%clk 0:03:01]}  Nf6 {[%clk 0:03:00]} 5. Nc3 {[%clk 0:03:01]}  e6 {[%clk 0:02:53]} 6. g3 {[%clk 0:03:01]}  h5 {[%clk 0:02:52]} 7. Nf3 {[%clk 0:03:00]}  Be7 {[%clk 0:02:46]} 8. Bg5 {[%clk 0:02:58]}  Nbd7 {[%clk 0:02:45]} 9. Bg2 {[%clk 0:02:57]}  Nd5 {[%clk 0:02:44]} 10. Bxe7 {[%clk 0:02:56]}  Qxe7 {[%clk 0:02:45]} 11. Nxd5 {[%clk 0:02:50]}  cxd5 {[%clk 0:02:45]} 12. Qe2 {[%clk 0:02:44]}  b6 {[%clk 0:02:42]} 13. O-O {[%clk 0:02:38]}  O-O {[%clk 0:02:39]} 14. c3 {[%clk 0:02:34]}  a5 {[%clk 0:02:33]} 15. Rfe1 {[%clk 0:02:34]}  Ba6 {[%clk 0:02:33]} 16. Qe3 {[%clk 0:02:34]}  Rfc8 {[%clk 0:02:23]} 17. Qf4 {[%clk 0:02:32]}  Qf6 {[%clk 0:02:18]} 18. Qd6 {[%clk 0:02:28]}  Ra7 {[%clk 0:02:08]} 19. Re3 {[%clk 0:02:22]}  b5 {[%clk 0:02:05]} 20. Rae1 {[%clk 0:02:20]}  Qd8 {[%clk 0:01:56]} 21. h4 {[%clk 0:02:09]}  Nf6 {[%clk 0:01:54]} 22. Qf4 {[%clk 0:02:08]}  b4 {[%clk 0:01:54]} 23. Ne5 {[%clk 0:01:53]}  bxc3 {[%clk 0:01:53]} 24. bxc3 {[%clk 0:01:53]}  Rac7 {[%clk 0:01:53]} 25. Bh3 {[%clk 0:01:39]}  Rxc3 {[%clk 0:01:39]} 26. Nxf7 {[%clk 0:01:36]}  Rxe3 {[%clk 0:01:35]} 27. Qxe3 {[%clk 0:01:30]}  Kxf7 {[%clk 0:01:33]} 28. Qxe6+ {[%clk 0:01:28]}  Kf8 {[%clk 0:01:30]} 29. Qxa6 {[%clk 0:01:28]}  Rb8 {[%clk 0:01:27]} 30. Qe6 {[%clk 0:01:22]}  Rb6 {[%clk 0:01:21]} 31. Qe5 {[%clk 0:01:20]}  Qd6 {[%clk 0:01:18]} 32. Qg5 {[%clk 0:01:19]}  Qb8 {[%clk 0:01:16]} 33. Bf5 {[%clk 0:01:15]}  Rb2 {[%clk 0:01:13]} 34. Bg6 {[%clk 0:01:13]}  Rb7 {[%clk 0:00:47]} 35. Bxh5 {[%clk 0:01:11]}  Rb1 {[%clk 0:00:46]} 36. Rxb1 {[%clk 0:01:09]}  Qxb1+ {[%clk 0:00:47]} 37. Kg2 {[%clk 0:01:07]}  Qe4+ {[%clk 0:00:44]} 38. Bf3 {[%clk 0:01:07]}  Qxd4 {[%clk 0:00:45]} 39. h5 {[%clk 0:01:07]}  Ne4 {[%clk 0:00:41]} 40. Qf4+ {[%clk 0:01:05]}  Ke7 {[%clk 0:00:36]} 41. Bxe4 {[%clk 0:01:05]}  dxe4 {[%clk 0:00:33]} 42. Qc7+ {[%clk 0:01:05]}  Kf6 {[%clk 0:00:31]} 43. Qxa5 {[%clk 0:01:04]}  e3 {[%clk 0:00:28]} 44. fxe3 {[%clk 0:00:58]}  Qxe3 {[%clk 0:00:27]} 45. Qd8+ {[%clk 0:00:55]}  Kf7 {[%clk 0:00:24]} 46. Qd7+ {[%clk 0:00:54]}  Kg8 {[%clk 0:00:25]} 47. Qd5+ {[%clk 0:00:54]}  Kh8 {[%clk 0:00:23]} 48. Kh3 {[%clk 0:00:50]}  Qe1 {[%clk 0:00:20]} 49. Qd8+ {[%clk 0:00:46]}  Kh7 {[%clk 0:00:20]} 50. Qd3+ {[%clk 0:00:47]}  Kh8 {[%clk 0:00:20]} 51. Qc4 {[%clk 0:00:38]}  Qh1+ {[%clk 0:00:20]} 52. Kg4 {[%clk 0:00:38]}  Qd1+ {[%clk 0:00:21]} 53. Kg5 {[%clk 0:00:38]}  Qd8+ {[%clk 0:00:21]} 54. Kf4 {[%clk 0:00:38]}  Qf6+ {[%clk 0:00:20]} 55. Ke3 {[%clk 0:00:38]}  Qg5+ {[%clk 0:00:20]} 56. Kf3 {[%clk 0:00:38]}  Qxh5+ {[%clk 0:00:20]} 57. g4 {[%clk 0:00:37]}  Qh3+ {[%clk 0:00:20]} 58. Kf4 {[%clk 0:00:37]}  Qh2+ {[%clk 0:00:19]} 59. Kf5 {[%clk 0:00:37]}  Qf2+ {[%clk 0:00:19]} 60. Ke5 {[%clk 0:00:37]}  Qf6+ {[%clk 0:00:19]} 61. Kd5 {[%clk 0:00:37]}  Qf7+ {[%clk 0:00:19]} 62. Kc5 {[%clk 0:00:37]}  Qc7+ {[%clk 0:00:19]} 63. Kb4 {[%clk 0:00:37]}  Qb6+ {[%clk 0:00:18]} 64. Kc3 {[%clk 0:00:37]}  Qe3+ {[%clk 0:00:18]} 65. Kb2 {[%clk 0:00:37]}  Qf2+ {[%clk 0:00:18]} 66. Kb3 {[%clk 0:00:37]}  Qe3+ {[%clk 0:00:18]} 67. Qc3 {[%clk 0:00:37]}  Qe6+ {[%clk 0:00:18]} 68. Qc4 {[%clk 0:00:37]}  Qe3+ {[%clk 0:00:19]} 69. Ka4 {[%clk 0:00:38]}  Qa7+ {[%clk 0:00:19]} 70. Kb5 {[%clk 0:00:38]}  Qb7+ {[%clk 0:00:20]} 71. Kc5 {[%clk 0:00:38]}  Qc7+ {[%clk 0:00:20]} 72. Kd4 {[%clk 0:00:39]}  Qf4+ {[%clk 0:00:20]} 73. Kd5 {[%clk 0:00:38]}  Qf7+ {[%clk 0:00:20]} 74. Kc5 {[%clk 0:00:38]}  Qc7+ {[%clk 0:00:20]} 1/2-1/2


[Site "https://www.chess.com"]

[Event "Titled Tuesday Blitz July 18 Early 2023"]
[White "Postlmayer, Jakob"]
[Black "Arhan_Anand"]
[WhiteFideId "1643622"]
[WhiteElo "2505"]
[BlackElo "2653"]
[Result "1-0"]
[Round "5"]
[TimeControl "180+2"]
[Date "2023.07.18"]
[WhiteClock "0:00:21"]
[BlackClock "0:00:17"]
[Board "83"]

1. c4 {[%clk 0:03:00]}  Nf6 {[%clk 0:02:57]} 2. Nc3 {[%clk 0:03:00]}  c6 {[%clk 0:02:56]} 3. d4 {[%clk 0:02:59]}  d5 {[%clk 0:02:56]} 4. Nf3 {[%clk 0:02:59]}  e6 {[%clk 0:02:56]} 5. e3 {[%clk 0:02:56]}  Nbd7 {[%clk 0:02:55]} 6. Be2 {[%clk 0:02:56]}  Bd6 {[%clk 0:02:55]} 7. O-O {[%clk 0:02:55]}  O-O {[%clk 0:02:55]} 8. b3 {[%clk 0:02:56]}  b6 {[%clk 0:02:52]} 9. Bb2 {[%clk 0:02:56]}  Bb7 {[%clk 0:02:52]} 10. Bd3 {[%clk 0:02:56]}  Re8 {[%clk 0:02:50]} 11. Re1 {[%clk 0:02:54]}  Rc8 {[%clk 0:02:50]} 12. Rc1 {[%clk 0:02:53]}  e5 {[%clk 0:02:50]} 13. dxe5 {[%clk 0:02:49]}  Nxe5 {[%clk 0:02:51]} 14. cxd5 {[%clk 0:02:48]}  cxd5 {[%clk 0:02:47]} 15. Be2 {[%clk 0:02:43]}  Ng6 {[%clk 0:02:41]} 16. Nb5 {[%clk 0:02:38]}  Bb8 {[%clk 0:02:41]} 17. Rxc8 {[%clk 0:02:36]}  Bxc8 {[%clk 0:02:39]} 18. Bxf6 {[%clk 0:02:27]}  gxf6 {[%clk 0:02:37]} 19. Nbd4 {[%clk 0:02:22]}  Qd6 {[%clk 0:02:35]} 20. g3 {[%clk 0:02:19]}  Ne5 {[%clk 0:02:34]} 21. Qc2 {[%clk 0:01:57]}  Bd7 {[%clk 0:02:25]} 22. Rc1 {[%clk 0:01:56]}  Ng4 {[%clk 0:02:17]} 23. Bf1 {[%clk 0:01:51]}  Qa3 {[%clk 0:02:01]} 24. Qd2 {[%clk 0:01:38]}  Ne5 {[%clk 0:01:59]} 25. Bg2 {[%clk 0:01:38]}  Nd3 {[%clk 0:01:42]} 26. Rd1 {[%clk 0:01:28]}  Nc5 {[%clk 0:01:41]} 27. Rc1 {[%clk 0:01:00]}  Be5 {[%clk 0:01:37]} 28. Rc2 {[%clk 0:00:54]}  Rc8 {[%clk 0:01:32]} 29. Qc1 {[%clk 0:00:52]}  Qxc1+ {[%clk 0:01:29]} 30. Rxc1 {[%clk 0:00:53]}  Nd3 {[%clk 0:01:28]} 31. Rxc8+ {[%clk 0:00:52]}  Bxc8 {[%clk 0:01:29]} 32. Nxe5 {[%clk 0:00:50]}  fxe5 {[%clk 0:01:30]} 33. Nc6 {[%clk 0:00:49]}  Kf8 {[%clk 0:01:19]} 34. Bxd5 {[%clk 0:00:45]}  Bb7 {[%clk 0:01:18]} 35. Nxe5 {[%clk 0:00:36]}  Bxd5 {[%clk 0:01:16]} 36. Nxd3 {[%clk 0:00:35]}  Ke7 {[%clk 0:01:17]} 37. f4 {[%clk 0:00:26]}  Kd6 {[%clk 0:01:15]} 38. Kf2 {[%clk 0:00:26]}  Be4 {[%clk 0:01:14]} 39. Ke2 {[%clk 0:00:26]}  a5 {[%clk 0:01:13]} 40. Kd2 {[%clk 0:00:26]}  b5 {[%clk 0:01:12]} 41. a3 {[%clk 0:00:26]}  Kd5 {[%clk 0:01:10]} 42. Kc3 {[%clk 0:00:25]}  Bf5 {[%clk 0:01:08]} 43. Nf2 {[%clk 0:00:25]}  h5 {[%clk 0:01:04]} 44. h3 {[%clk 0:00:25]}  Kc5 {[%clk 0:00:59]} 45. b4+ {[%clk 0:00:23]}  axb4+ {[%clk 0:00:58]} 46. axb4+ {[%clk 0:00:24]}  Kd5 {[%clk 0:00:58]} 47. g4 {[%clk 0:00:24]}  hxg4 {[%clk 0:00:58]} 48. hxg4 {[%clk 0:00:25]}  Bc8 {[%clk 0:00:53]} 49. e4+ {[%clk 0:00:25]}  Kd6 {[%clk 0:00:53]} 50. Kd4 {[%clk 0:00:25]}  Bd7 {[%clk 0:00:52]} 51. f5 {[%clk 0:00:25]}  f6 {[%clk 0:00:49]} 52. Nd3 {[%clk 0:00:25]}  Bc6 {[%clk 0:00:44]} 53. Nf4 {[%clk 0:00:25]}  Ke7 {[%clk 0:00:42]} 54. Nd5+ {[%clk 0:00:25]}  Kf7 {[%clk 0:00:41]} 55. Kc5 {[%clk 0:00:25]}  Bd7 {[%clk 0:00:41]} 56. Nc3 {[%clk 0:00:25]}  Kg7 {[%clk 0:00:40]} 57. Nxb5 {[%clk 0:00:25]}  Kh6 {[%clk 0:00:40]} 58. Nc7 {[%clk 0:00:23]}  Kg5 {[%clk 0:00:40]} 59. Nd5 {[%clk 0:00:22]}  Bc8 {[%clk 0:00:39]} 60. Ne3 {[%clk 0:00:21]}  Kf4 {[%clk 0:00:37]} 61. Kd4 {[%clk 0:00:22]}  Bb7 {[%clk 0:00:37]} 62. b5 {[%clk 0:00:22]}  Bxe4 {[%clk 0:00:34]} 63. Nd5+ {[%clk 0:00:21]}  Kf3 {[%clk 0:00:17]} 64. b6 {[%clk 0:00:21]} 1-0


[Site "https://www.chess.com"]

[Event "Titled Tuesday Blitz July 18 Early 2023"]
[White "Galiot, Goran"]
[Black "Mathieu, Phileas"]
[WhiteFideId "931560"]
[BlackFideId "36048410"]
[WhiteElo "2649"]
[BlackElo "2497"]
[Result "0-1"]
[Round "5"]
[TimeControl "180+2"]
[Date "2023.07.18"]
[WhiteClock "0:00:00"]
[BlackClock "0:00:43"]
[Board "84"]

1. d4 {[%clk 0:03:00]}  Nf6 {[%clk 0:02:58]} 2. c4 {[%clk 0:03:01]}  c5 {[%clk 0:02:59]} 3. d5 {[%clk 0:03:01]}  b5 {[%clk 0:02:59]} 4. a4 {[%clk 0:03:01]}  b4 {[%clk 0:02:59]} 5. Nd2 {[%clk 0:03:01]}  g6 {[%clk 0:02:59]} 6. b3 {[%clk 0:03:01]}  Bg7 {[%clk 0:02:59]} 7. Bb2 {[%clk 0:03:02]}  O-O {[%clk 0:02:59]} 8. e4 {[%clk 0:03:02]}  d6 {[%clk 0:03:00]} 9. Bd3 {[%clk 0:03:00]}  e5 {[%clk 0:03:00]} 10. Ne2 {[%clk 0:02:55]}  Nh5 {[%clk 0:02:58]} 11. O-O {[%clk 0:02:51]}  f5 {[%clk 0:02:57]} 12. f4 {[%clk 0:02:33]}  fxe4 {[%clk 0:02:53]} 13. Nxe4 {[%clk 0:02:32]}  exf4 {[%clk 0:02:45]} 14. Bxg7 {[%clk 0:02:31]}  Kxg7 {[%clk 0:02:46]} 15. Qd2 {[%clk 0:02:09]}  g5 {[%clk 0:02:21]} 16. h4 {[%clk 0:01:43]}  h6 {[%clk 0:02:16]} 17. Qb2+ {[%clk 0:01:38]}  Kg8 {[%clk 0:02:15]} 18. hxg5 {[%clk 0:01:19]}  hxg5 {[%clk 0:02:14]} 19. Kf2 {[%clk 0:01:18]}  Bg4 {[%clk 0:02:00]} 20. Rh1 {[%clk 0:01:17]}  Nd7 {[%clk 0:01:47]} 21. Rxh5 {[%clk 0:01:14]}  Bxh5 {[%clk 0:01:45]} 22. Rh1 {[%clk 0:01:14]}  Qe8 {[%clk 0:01:41]} 23. Nxg5 {[%clk 0:00:34]}  Qe3+ {[%clk 0:01:29]} 24. Ke1 {[%clk 0:00:34]}  Qxd3 {[%clk 0:01:11]} 25. Rxh5 {[%clk 0:00:21]}  Ne5 {[%clk 0:01:11]} 26. Nf3 {[%clk 0:00:09]}  Qxf3 {[%clk 0:01:02]} 27. gxf3 {[%clk 0:00:07]}  Nd3+ {[%clk 0:01:02]} 28. Kd2 {[%clk 0:00:07]}  Nxb2 {[%clk 0:01:03]} 29. Kc2 {[%clk 0:00:06]}  Rae8 {[%clk 0:01:00]} 30. Rh2 {[%clk 0:00:07]}  Nxc4 {[%clk 0:00:53]} 31. bxc4 {[%clk 0:00:07]}  Re3 {[%clk 0:00:54]} 32. Rf2 {[%clk 0:00:06]}  Kg7 {[%clk 0:00:51]} 33. Kd2 {[%clk 0:00:06]}  Ra3 {[%clk 0:00:51]} 34. Rg2+ {[%clk 0:00:02]}  Kh6 {[%clk 0:00:51]} 35. Rg4 {[%clk 0:00:00]}  Rxf3 {[%clk 0:00:43]} 0-1


[Site "https://www.chess.com"]

[Event "Titled Tuesday Blitz July 18 Early 2023"]
[White "Florescu, Codrut-Constantin"]
[Black "kuanysh1981"]
[WhiteFideId "1202200"]
[WhiteElo "2626"]
[BlackElo "2486"]
[Result "1-0"]
[Round "5"]
[TimeControl "180+2"]
[Date "2023.07.18"]
[WhiteClock "0:00:18"]
[BlackClock "0:00:10"]
[Board "86"]

1. d4 {[%clk 0:02:54]}  Nf6 {[%clk 0:02:58]} 2. Nf3 {[%clk 0:02:53]}  e6 {[%clk 0:02:55]} 3. c4 {[%clk 0:02:53]}  b6 {[%clk 0:02:54]} 4. g3 {[%clk 0:02:53]}  Bb7 {[%clk 0:02:54]} 5. Bg2 {[%clk 0:02:53]}  Bb4+ {[%clk 0:02:50]} 6. Nbd2 {[%clk 0:02:51]}  O-O {[%clk 0:02:49]} 7. O-O {[%clk 0:02:51]}  a5 {[%clk 0:02:49]} 8. Qc2 {[%clk 0:02:49]}  Na6 {[%clk 0:02:41]} 9. e4 {[%clk 0:02:46]}  Be7 {[%clk 0:02:36]} 10. e5 {[%clk 0:02:44]}  Ne8 {[%clk 0:02:36]} 11. Ne4 {[%clk 0:02:42]}  Nb4 {[%clk 0:02:34]} 12. Qe2 {[%clk 0:02:37]}  f5 {[%clk 0:02:32]} 13. Nc3 {[%clk 0:02:32]}  Rb8 {[%clk 0:02:26]} 14. a3 {[%clk 0:02:30]}  Na6 {[%clk 0:02:22]} 15. b3 {[%clk 0:02:30]}  g6 {[%clk 0:02:11]} 16. Bb2 {[%clk 0:02:29]}  Ng7 {[%clk 0:02:10]} 17. Rad1 {[%clk 0:02:25]}  Qe8 {[%clk 0:02:07]} 18. Nb5 {[%clk 0:02:16]}  Be4 {[%clk 0:01:59]} 19. Ne1 {[%clk 0:02:05]}  Bxg2 {[%clk 0:01:59]} 20. Nxg2 {[%clk 0:02:06]}  c6 {[%clk 0:01:51]} 21. Nc3 {[%clk 0:02:03]}  Nc7 {[%clk 0:01:51]} 22. d5 {[%clk 0:01:59]}  exd5 {[%clk 0:01:46]} 23. cxd5 {[%clk 0:02:00]}  Bc5 {[%clk 0:01:44]} 24. Nf4 {[%clk 0:01:53]}  g5 {[%clk 0:01:39]} 25. Nd3 {[%clk 0:01:53]}  Bd4 {[%clk 0:01:38]} 26. e6 {[%clk 0:01:43]}  Bxc3 {[%clk 0:01:30]} 27. Bxc3 {[%clk 0:01:40]}  Nxd5 {[%clk 0:01:31]} 28. Bxg7 {[%clk 0:01:38]}  Kxg7 {[%clk 0:01:30]} 29. Qe5+ {[%clk 0:01:34]}  Kg8 {[%clk 0:01:24]} 30. Rfe1 {[%clk 0:01:28]}  Qxe6 {[%clk 0:01:23]} 31. Qxe6+ {[%clk 0:01:27]}  dxe6 {[%clk 0:01:24]} 32. Rxe6 {[%clk 0:01:28]}  Rf6 {[%clk 0:01:21]} 33. Ree1 {[%clk 0:01:20]}  Nc3 {[%clk 0:01:16]} 34. Rc1 {[%clk 0:01:19]}  Nb5 {[%clk 0:01:15]} 35. Ne5 {[%clk 0:01:16]}  Rc8 {[%clk 0:00:59]} 36. Nd7 {[%clk 0:01:14]}  Rd6 {[%clk 0:00:57]} 37. Nxb6 {[%clk 0:01:13]}  Rf8 {[%clk 0:00:56]} 38. Nc4 {[%clk 0:01:12]}  Rd3 {[%clk 0:00:54]} 39. Re3 {[%clk 0:01:09]}  Rxe3 {[%clk 0:00:52]} 40. Nxe3 {[%clk 0:01:10]}  Nd4 {[%clk 0:00:50]} 41. Rc4 {[%clk 0:01:07]}  Nxb3 {[%clk 0:00:48]} 42. Rxc6 {[%clk 0:01:06]}  Nd4 {[%clk 0:00:48]} 43. Rc7 {[%clk 0:01:04]}  f4 {[%clk 0:00:48]} 44. Nd5 {[%clk 0:00:58]}  f3 {[%clk 0:00:46]} 45. h4 {[%clk 0:00:48]}  g4 {[%clk 0:00:46]} 46. h5 {[%clk 0:00:49]}  h6 {[%clk 0:00:36]} 47. Rd7 {[%clk 0:00:47]}  Ne2+ {[%clk 0:00:30]} 48. Kf1 {[%clk 0:00:47]}  Rb8 {[%clk 0:00:31]} 49. Nf6+ {[%clk 0:00:39]}  Kf8 {[%clk 0:00:31]} 50. Ke1 {[%clk 0:00:40]}  Rb2 {[%clk 0:00:22]} 51. Nxg4 {[%clk 0:00:35]}  Nc3 {[%clk 0:00:22]} 52. Rd3 {[%clk 0:00:29]}  Ne4 {[%clk 0:00:14]} 53. Rxf3+ {[%clk 0:00:28]}  Kg7 {[%clk 0:00:15]} 54. Re3 {[%clk 0:00:24]}  Ng5 {[%clk 0:00:15]} 55. Ne5 {[%clk 0:00:23]}  Ra2 {[%clk 0:00:14]} 56. Kf1 {[%clk 0:00:22]}  Kf6 {[%clk 0:00:13]} 57. Kg2 {[%clk 0:00:20]}  Nf7 {[%clk 0:00:12]} 58. Nxf7 {[%clk 0:00:18]}  Kxf7 {[%clk 0:00:13]} 59. g4 {[%clk 0:00:18]}  a4 {[%clk 0:00:12]} 60. Kg3 {[%clk 0:00:18]}  Rb2 {[%clk 0:00:12]} 61. f3 {[%clk 0:00:17]}  Rb3 {[%clk 0:00:12]} 62. Kf4 {[%clk 0:00:18]}  Kf6 {[%clk 0:00:11]} 63. Ke4 {[%clk 0:00:18]}  Kg5 {[%clk 0:00:11]} 64. Rxb3 {[%clk 0:00:17]}  axb3 {[%clk 0:00:11]} 65. Kd3 {[%clk 0:00:18]}  Kf4 {[%clk 0:00:12]} 66. a4 {[%clk 0:00:18]}  Kxf3 {[%clk 0:00:12]} 67. a5 {[%clk 0:00:18]}  b2 {[%clk 0:00:13]} 68. Kc2 {[%clk 0:00:18]}  Kxg4 {[%clk 0:00:14]} 69. a6 {[%clk 0:00:17]}  Kxh5 {[%clk 0:00:10]} 70. a7 {[%clk 0:00:18]} 1-0


[Site "https://www.chess.com"]